Cogmind - Beta 9.6 @@@ ROGUE MODE // 2020.09.09 @ 03:22:30 Player: Calanor Result: Destroyed by G-47 Trooper with Particle Gun Performance ------------- Evolutions (2) 1000 Regions Visited (5) 1000 Robots Destroyed (46) 230 Value Destroyed (763) 763 Prototype IDs (26) 520 Alien Tech Used (0) 0 Bonus (300) 300 TOTAL SCORE: 3813 Bonus ------- Aligned with FarCom 300 Cogmind --------- Core Integrity 0/550 Matter 261/300 Energy 61/100 System Corruption 0% Temperature Cool (18) Movement Core (300) Ox5 Location -8/Materials Parts ------- > --- POWER (2) -------- (None) > --- PROPULSION (4) --- (None) > --- UTILITY (3) ------ (None) > --- WEAPON (2) ------- YOLO Cannon > --- INVENTORY (4) ---- Medium Storage Unit Proton Bomb Trap Peak State ------------ > --- POWER ------------ (None) > --- PROPULSION ------- (None) > --- UTILITY ---------- (None) > --- WEAPON ----------- YOLO Cannon > --- INVENTORY -------- Medium Storage Unit Proton Bomb Trap [Rating: 20] Favorites ----------- Power Light Nuclear Core Engine Light Ion Engine Power Core Light Nuclear Core Propulsion Compact Wheel Wheel Compact Wheel Utility Large Storage Unit Device Improved Heat Sink Storage Large Storage Unit Protection Light Armor Plating Weapon Assault Rifle Energy Gun EM Pulse Gun Energy Cannon YOLO Cannon Ballistic Gun Assault Rifle Launcher Rocket Launcher Special Weapon Plasma Flamer Build | -11 -10 -10 -10 -9 -8 ------- Run | Scr Mat Min Exi Min Mat Slots Evolved 4 | . . . . . 4 Power 1 | . . . . . 1 Propulsion 2 | . . . . . 2 Utility 1 | . . . . . 1 Weapon . | . . . . . . Parts Attached 54 | 6 23 4 3 6 12 Power 3 | 1 . 1 . . 1 Engine 2 | 1 . . . . 1 Core 1 | . . 1 . . . Reactor . | . . . . . . Propulsion 13 | 2 6 1 1 2 1 Treads . | . . . . . . Leg . | . . . . . . Wheel 13 | 2 6 1 1 2 1 Hover . | . . . . . . Flight . | . . . . . . Utility 11 | 1 7 1 . . 2 Device 3 | . 1 1 . . 1 Storage 2 | 1 1 . . . . Processor . | . . . . . . Hackware . | . . . . . . Protection 6 | . 5 . . . 1 Artifact . | . . . . . . Weapon 27 | 2 10 1 2 4 8 Energy Gun 10 | 1 7 . . . 2 Energy Cannon 2 | . . . . . 2 Ballistic Gun 9 | 1 3 . . 3 2 Ballistic Cannon . | . . . . . . Launcher 1 | . . . . . 1 Special Weapon 5 | . . 1 2 1 1 Impact Weapon . | . . . . . . Slashing Weapon . | . . . . . . Piercing Weapon . | . . . . . . Special Melee Weapon . | . . . . . . Unidentified Prototypes . | . . . . . . Parts Lost 27 | . 6 1 . 4 16 Power 3 | . . 1 . . 2 Propulsion 6 | . 1 . . 2 3 Utility 3 | . . . . . 3 Weapon 15 | . 5 . . 2 8 Highest Loss Streak 11 | . 3 1 . 4 11 Average Slot Usage (%) 93 | . 97 99 100 97 37 Engine 4 | . 14 2 . . . Core 8 | . . 11 14 14 2 Wheel 25 | . 26 28 28 25 6 Device 11 | . 7 14 14 14 9 Storage 13 | . 14 14 14 14 4 Protection 2 | . 6 . . . 1 Energy Gun 5 | . 18 . . . 4 Ballistic Gun 14 | . 8 16 14 23 7 Special Weapon 6 | . . 11 14 4 . Naked Turns 14 | . . . . . 14 Heaviest Build 28 | 11 26 27 27 27 28 Greatest Support 32 | 26 32 26 32 32 20 Greatest Overweight (x) 5 | . 1 1 1 2 5 Average Overweight (x) . | . . . . . . Largest Inventory Capacity 10 | 6 10 10 10 10 10 Average Capacity 9 | 5 9 10 10 10 7 Most Carried 10 | 4 10 10 10 10 10 Average Carried 8 | 1 7 9 9 8 6 Final Capacity 10 | 6 10 10 10 10 4 Final Carried 10 | 2 9 10 10 10 2 Class Distribution -------------------- 54% | Scavenger-Mutant 45% | Mutant Dominant Class ---------------- Mutant | -10/Materials Scavenger-Mutant | -10/Mines Scavenger-Mutant | -10/Exiles Scavenger-Mutant | -9/Mines Mutant | -8/Materials Resources | -11 -10 -10 -10 -9 -8 ----------- Run | Scr Mat Min Exi Min Mat Matter Collected 838 | 201 358 77 . 119 83 Remotely . | . . . . . . Salvage Created 1127 | . 706 108 . 77 236 Parts 95 | . 50 6 . 14 25 Haulers Intercepted 1 | . 1 . . . . Recyclers Shooed . | . . . . . . Parts Field Recycled . | . . . . . . Retrieved Matter . | . . . . . . Parts Self-Destructed . | . . . . . . Prevented . | . . . . . . Kills | -11 -10 -10 -10 -9 -8 ------- Run | Scr Mat Min Exi Min Mat Combat Hostiles Destroyed 28 | . 11 2 . 7 8 Guns 19 | . 9 2 . 5 3 Cannons 5 | . . . . 2 3 AOE 4 | . 2 . . . 2 Classes Destroyed 8 | . 7 . . . 1 Worker 8 | . 3 1 . . 4 Builder 4 | . 3 . . 1 . Hauler 1 | . 1 . . . . Recycler 2 | . 2 . . . . Watcher 3 | . 3 . . . . Swarmer 17 | . 6 . . 7 4 Grunt 10 | . 5 2 . . 3 Sentry 1 | . . . . . 1 Best Kill Streak 7 | . 4 3 . 5 7 Combat Bots Only 6 | . 3 2 . 4 6 Max Kills in Single Turn 2 | . 2 1 . 1 2 Gunslinging . | . . . . . . Exploded 1 | . 1 . . . 1 Melee . | . . . . . . Uniques/NPCs Destroyed . | . . . . . . Combat | -11 -10 -10 -10 -9 -8 -------- Run | Scr Mat Min Exi Min Mat Damage Taken 2824 | . 698 109 . 396 1621 Core 805 | . 126 25 . 96 558 Absorbed by Shields . | . . . . . . Core Remaining (%) 50 | 100 . . . 1 . Volleys Fired 135 | . 61 7 18 18 31 Largest 2 | . 2 2 1 2 2 Hottest 130 | . 130 40 100 120 126 Shots Fired 219 | . 105 14 18 32 50 Gun 178 | . 105 14 . 18 41 Cannon 5 | . . . . . 5 Launcher 3 | . . . . . 3 Special 33 | . . . 18 14 1 Kinetic 95 | . 38 14 . 18 25 Thermal 78 | . 24 . 18 14 22 Explosive 3 | . . . . . 3 Electromagnetic 43 | . 43 . . . . Robot Hit Streak 11 | . 8 3 . 5 11 Robot Miss Streak 7 | . 7 2 . 5 3 Penetration Max . | . . . . . . Secondary Targets 3 | . 2 . . . 1 Max Gunslinging Chain 1 | . 1 . . . 1 Shots Hit Robots 125 | . 70 8 . 15 32 Core Hits 81 | . 46 6 . 8 21 Critical Hits . | . . . . . . Critical Kills . | . . . . . . Critical Parts Destroyed . | . . . . . . Melee Attacks . | . . . . . . Impact . | . . . . . . Slashing . | . . . . . . Piercing . | . . . . . . Sneak Attacks . | . . . . . . Combat Hostiles . | . . . . . . Follow-up Attacks . | . . . . . . Damage Inflicted 2179 | . 936 131 . 188 924 Guns 1291 | . 754 111 . 101 325 Cannons 53 | . . . . . 53 Explosions 724 | . 182 20 . . 522 Melee . | . . . . . . Ramming . | . . . . . . Kinetic 561 | . 177 111 . 101 172 Thermal 1175 | . 400 . . 87 688 Explosive 64 | . . . . . 64 Electromagnetic 379 | . 359 20 . . . Impact . | . . . . . . Slashing . | . . . . . . Piercing . | . . . . . . Highest Corruption . | . . . . . . Average Corruption . | . . . . . . Corruption Purged . | . . . . . . Overload Shots . | . . . . . . Overflow Damage 26 | . 18 . . . 8 Projectiles . | . . . . . . Explosions 26 | . 18 . . . 8 Melee . | . . . . . . Knockbacks . | . . . . . . Impact . | . . . . . . Kinetic . | . . . . . . Secondary . | . . . . . . Self-Inflicted Damage 87 | . 73 . . . 14 Shots 4 | . 3 . . . 1 Rammed . | . . . . . . Targets Rammed . | . . . . . . Kicked . | . . . . . . Crushed . | . . . . . . Highest Temperature 226 | . 226 . . 64 52 Average Temperature 60 | . 70 . . 31 28 Received Heat Transfer 948 | . 228 63 . . 657 Siege Activations . | . . . . . . Robots Corrupted . | . . . . . . Combat Hostiles . | . . . . . . Parts Fried . | . . . . . . Impact Corruptions . | . . . . . . Robots Melted . | . . . . . . Combat Hostiles . | . . . . . . Parts Melted 1 | . 1 . . . . Heat Transferred 2045 | . 681 . . 340 1024 Parts Sabotaged . | . . . . . . Parts Stolen . | . . . . . . Parts Stripped . | . . . . . . Power Chain Reactions 4 | . 4 . . . . Missiles Intercepted . | . . . . . . Alert | -11 -10 -10 -10 -9 -8 ------- Run | Scr Mat Min Exi Min Mat Peak Influence 168 | . 142 81 . 125 168 Average Influence 53 | . 54 44 . 61 67 Maximum Alert Level . | . . . . . . Low Security (%) 100 | 100 100 100 . 100 100 Level 1 . | . . . . . . Level 2 . | . . . . . . Level 3 . | . . . . . . Level 4 . | . . . . . . Level 5 . | . . . . . . High Security . | . . . . . . Max Security . | . . . . . . Squads Dispatched 4 | . 1 . . . 3 Investigation 1 | . 1 . . . . Extermination . | . . . . . . Reinforcement 1 | . . . . . 1 Assault . | . . . . . . Garrison 2 | . . . . . 2 Intercept . | . . . . . . Construction Impeded . | . . . . . . Haulers Reinforced . | . . . . . . Stealth | -11 -10 -10 -10 -9 -8 --------- Run | Scr Mat Min Exi Min Mat Distress Signals 3 | . 2 . . . 1 Communications Jammed . | . . . . . . Distress Signals . | . . . . . . Times Spotted 46 | . 19 2 . 7 18 Peak Tracking Total 9 | . 5 2 . 4 9 Tactical Retreats 2 | . . . . 1 1 Traps | -11 -10 -10 -10 -9 -8 ------- Run | Scr Mat Min Exi Min Mat Traps Triggered 1 | . 1 . . . . Indirectly . | . . . . . . Trap Hack Attempts . | . . . . . . Triggered . | . . . . . . Disarmed 6 | . 6 . . . . Reprogrammed . | . . . . . . Reused 1 | . . 1 . . . Traps Extracted . | . . . . . . Installed 1 | . . 1 . . . Triggered 2 | . 1 1 . . . Machines | -11 -10 -10 -10 -9 -8 ---------- Run | Scr Mat Min Exi Min Mat Machines Disabled 4 | . 3 . . . 1 Max in Single Turn 2 | . 2 . . . 1 Machines Sabotaged . | . . . . . . Garrisons Compromised . | . . . . . . Overloaded Fab Kills . | . . . . . . Fab Network Shutdowns . | . . . . . . Hacking | -11 -10 -10 -10 -9 -8 --------- Run | Scr Mat Min Exi Min Mat Machines Accessed 16 | . 9 . 5 . 2 Terminals 7 | . 6 . . . 1 Fabricators . | . . . . . . Repair Stations 2 | . 1 . . . 1 Recycling Units 2 | . 2 . . . . Scanalyzers . | . . . . . . Garrison Access . | . . . . . . Total Hacks 56 | . 21 . 29 . 6 Successful 46 | . 14 . 29 . 3 Failed 10 | . 7 . . . 3 Catastrophic . | . . . . . . Database Lockouts . | . . . . . . Manual 5 | . . . 5 . . Terminals 17 | . 13 . . . 4 Fabricators . | . . . . . . Repair Stations 5 | . 3 . . . 2 Recycling Units 5 | . 5 . . . . Scanalyzers . | . . . . . . Garrison Access . | . . . . . . Terminal Hacks 40 | . 8 . 29 . 3 Record 28 | . . . 28 . . Robot Analysis 1 | . 1 . . . . Prototype ID Bank 3 | . 2 . . . 1 Emergency Access Points 1 | . . . . . 1 Alert Level 1 | . 1 . . . . Unreport Threat 1 | . 1 . . . . Locate Traps 2 | . 1 . . . 1 Disarm Traps 1 | . 1 . . . . Transport Status 1 | . 1 . . . . EX-Prototype ID Bank 1 | . . . 1 . . Fabricator Hacks . | . . . . . . Repair Station Hacks 2 | . 2 . . . . Scan Component 1 | . 1 . . . . Repair 1 | . 1 . . . . Recycling Unit Hacks 4 | . 4 . . . . Process 1 | . 1 . . . . Report Inventory 2 | . 2 . . . . Retrieve Matter 1 | . 1 . . . . Scanalyzer . | . . . . . . Garrison Access Hacks . | . . . . . . Unauthorized Hacks . | . . . . . . Terminals . | . . . . . . Fabricators . | . . . . . . Repair Stations . | . . . . . . Recycling Units . | . . . . . . Scanalyzers . | . . . . . . Garrison Access . | . . . . . . Data Cores Recovered . | . . . . . . Used . | . . . . . . Hacking Detections 10 | . 8 . . . 2 Full Trace Events 4 | . 3 . . . 1 Feedback Events . | . . . . . . Feedback Blocked . | . . . . . . Robot Schematics Acquired . | . . . . . . Robots Built . | . . . . . . Matter . | . . . . . . Time . | . . . . . . Total Robot Build Rating . | . . . . . . Part Schematics Acquired . | . . . . . . Parts Built . | . . . . . . Matter . | . . . . . . Time . | . . . . . . Total Part Build Rating . | . . . . . . Parts Repaired 1 | . 1 . . . . Time 26 | . 26 . . . . Parts Recycled . | . . . . . . Recycled Matter 30 | . 30 . . . . Retrieved Matter 30 | . 30 . . . . Retrieved Components . | . . . . . . Parts Scanalyzed . | . . . . . . Part Schematics Acquired . | . . . . . . Parts Damaged . | . . . . . . Bothacking | -11 -10 -10 -10 -9 -8 ------------ Run | Scr Mat Min Exi Min Mat Used RIF Installer . | . . . . . . Robots Hacked . | . . . . . . Non-combat . | . . . . . . Combat . | . . . . . . Robot Hacks Applied . | . . . . . . Relay Couplers Released . | . . . . . . Robots Rewired . | . . . . . . Allies Hacked . | . . . . . . Hacks Repelled . | . . . . . . Allies | -11 -10 -10 -10 -9 -8 -------- Run | Scr Mat Min Exi Min Mat Total Allies . | . . . . . . Largest Group . | . . . . . . Highest-Rated Group . | . . . . . . Highest-Rated Ally . | . . . . . . Total Orders . | . . . . . . Ally Attacks . | . . . . . . Total Damage . | . . . . . . Kills . | . . . . . . Allies Corrupted . | . . . . . . Allies Melted . | . . . . . . Intel | -11 -10 -10 -10 -9 -8 ------- Run | Scr Mat Min Exi Min Mat Robot Analysis Total 1 | . 1 . . . . Derelict Logs Recovered 1 | . . . . 1 . Drone Launches . | . . . . . . Drone Recoveries . | . . . . . . Exploration | -11 -10 -10 -10 -9 -8 ------------- Run | Scr Mat Min Exi Min Mat Turns Passed 3378 | 48 994 629 811 637 259 Spaces Moved 2764 | 41 737 581 731 526 148 Core 72 | 6 . . . . 66 Treads . | . . . . . . Legs . | . . . . . . Wheels 2692 | 35 737 581 731 526 82 Hover . | . . . . . . Flight . | . . . . . . Fastest Speed 50 | 50 90 90 100 90 50 Average Speed 96 | 84 93 98 100 93 95 Slowest Speed 300 | 90 110 100 100 110 300 Overloaded Moves . | . . . . . . Propulsion Burnouts . | . . . . . . Robots Hopped . | . . . . . . Cave-ins Triggered . | . . . . . . Exploration Rate (%) 64 | 4 97 98 92 76 18 Regions Visited 5 Branch Regions 3 Pre-discovered Areas 3 | . . . 1 2 . Known Exits Taken . | . . . . . . Unknown Exits Taken 5 | 1 1 1 1 1 . Scrap Searched 3 | . . 1 . 2 . Spaces Dug 8 | . . . . . 8 Terrain Destroyed 69 | . 9 . . 1 59 Melee . | . . . . . . Projectile 3 | . . . . 1 2 AOE 66 | . 9 . . . 57 Actions | -11 -10 -10 -10 -9 -8 --------- Run | Scr Mat Min Exi Min Mat Total 3206 | 53 938 624 756 624 211 Wait 189 | . 91 11 . 69 18 Move 2759 | 40 736 580 730 525 148 Hop . | . . . . . . Pick Up 38 | 7 17 7 2 5 . Fast Attach 9 | 1 2 . . . 6 Attach 24 | 5 8 1 . 4 6 Detach . | . . . . . . Swap 21 | . 13 3 3 2 . Drop 22 | . 10 6 3 1 2 Fire 135 | . 61 7 18 18 31 Melee . | . . . . . . Ram . | . . . . . . Kick . | . . . . . . Crush . | . . . . . . Escape Stasis . | . . . . . . Rewire 8 | . . 8 . . . Trap 1 | . . 1 . . . Miscellaneous . | . . . . . . Route ------- -11/Scrapyard -10/Materials (discovered 4 exits: [*Mat x3] / [*Min]) -10/Mines (discovered 3 exits: [*Mat x2] / *Exi) -10/Exiles -9/Mines -8/Materials History --------- Turn | Location | Event 22 | -11/Scrapyard | Discovered new exit (range 15) 49 | -11/Scrapyard | Entered Materials 191 | -10/Materials | Discovered new exit (range 13) 313 | -10/Materials | Build established: Mutant 452 | -10/Materials | Discovered new exit (range 15) 549 | -10/Materials | Discovered new exit (range 15) 634 | -10/Materials | Repaired Com. Wheel 851 | -10/Materials | Core integrity fell below 50% 885 | -10/Materials | Lost 3 parts (3w) 941 | -10/Materials | Discovered new exit (range 13) 1043 | -10/Materials | Entered Mines 1043 | -10/Mines | A weapon hastily lodged in a ceiling crevice suddenly fell to the ground 1069 | -10/Mines | Received a Rocket Launcher from a helpful Derelict 1087 | -10/Mines | Found a hidden stash of uninstalled traps 1103 | -10/Mines | Assembled infested the area 1376 | -10/Mines | Discovered new exit (range 11) 1432 | -10/Mines | Discovered new exit (range 12) 1457 | -10/Mines | Build established: Scavenger-Mutant 1639 | -10/Mines | Discovered new exit (range 5) 1672 | -10/Mines | Entered Exiles 1699 | -10/Exiles | Met 8R-AWN 1720 | -10/Exiles | Met EX-HEX 1774 | -10/Exiles | Met EX-DEC 1782 | -10/Exiles | Learned location of Zion (-7) 1882 | -10/Exiles | Visited The Gauntlet 2054 | -10/Exiles | Discovered new exit (range 14) 2127 | -10/Exiles | Met EX-BIN 2313 | -10/Exiles | Aligned with FarCom system 2314 | -10/Exiles | Given EX-Vault access code 2376 | -10/Exiles | Opened EX-Vault 2387 | -10/Exiles | Found Prototype Energy Cannon 2393 | -10/Exiles | Identified YOLO Cannon 2412 | -10/Exiles | Warned to stay clear of 0b10 Research branches 2483 | -10/Exiles | Left Exiles lab with YOLO Cannon 2483 | -10/Exiles | Entered Mines 2595 | -9/Mines | Learned location of Storage (-9) 2643 | -9/Mines | Core integrity fell below 20% 2682 | -9/Mines | Lost 4 parts (2n2w) 3039 | -9/Mines | Discovered new exit (range 8) 3120 | -9/Mines | Entered Materials 3120 | -8/Materials | Evolved 4 slots: Power x1, Propulsion x2, Utility x1 3213 | -8/Materials | Garrison activated, responded to threat 3279 | -8/Materials | Lost 11 parts (1p2n2u6w) 3351 | -8/Materials | Core integrity fell below 50% 3371 | -8/Materials | Core integrity fell below 20% 3378 | -8/Materials | Lost 4 parts (1n1u2w) 3379 | -8/Materials | Destroyed by G-47 Trooper with Particle Gun Last Messages --------------- S-10 Pest suffers critical hit. The unstable cave ceiling collapses. U-05 Engineer lays Concrete. U-05 Engineer builds a Wall. Electrolaser destroyed. U-05 Engineer lays Concrete. Imp. Heat Sink destroyed. U-05 Engineer lays Concrete. Acquired Wheel. U-05 Engineer builds a Wall. Wheel destroyed. K-01 Serf collects debris. S-10 Pest destroyed. K-01 Serf collects debris. U-05 Engineer lays Concrete. K-01 Serf destroyed. Destroyed Wheel. U-05 Engineer lays Concrete. W-25 Informer sends out distress signal. U-05 Engineer lays Concrete. Map ----- +----------------------------------------------------+ | ???????????????????????????????????????????? | | ???????????????????????????????????????????? | | ???????????????????????????????????????????? | | ???????????????????????????????????????????? | | ???????????????????????????????????????????? | | ???????????????????????????????????????????? | | ???????????????????????????????????????????? | | ???????????????????????????????????????????? | | ???????????????????????????????????????????? | | ???????????????????????????????????????????? | | ???????????????????????????????????????????? | | ???????????????????????????????????????????? | | ???????????????????????????????????????????? | | ???????????????????????????????????????????? | | ???????????????????????????????????????????? | | ???????????????????????????????????????????? | | ???????????????????????????????????????????? | | ???????????????????????????????????????????? | | ???????????????????????????????????????????? | | ????????????????g??????????????????????????? | | ???????????????????????????????????????????? | | ???????????????g?g?????????????????????????? | | ???????????????????????????????????????????? | | ???????????????????????????????????????????? | | ??????????????????######???????????????????? | | ??????????????????#@ #???????????????????? | | ??????????????????# #???????????????????? | | ??????????????????# #???????????????????? | | ??????????????????# #???????????????????? | | ????????????####### sg#?g? #??????????????? | | ????????????# ;;gg;## #?w????????????? | | ????????????# %s% g # ""??????????? | | ????????????# T = * w / o??????? | | ????????????# # [ ???????? | | ????????????# u ##??????????????? | | ???????????####+#" #???????????????? | | ???????????# !!!!!!#???????????????? | | ???????????# *== !!!!!!#???????????????? | | ???????????# %*;;;;####???????????????? | | ???????????# ; ##??????????????????? | | ???????????# ###????????????????????? | | ???????????# #??????????????????????? | | ???????????# #??????????????????????? | | ???????????# #??????????????????????? | | ???????????# #??????????????????????? | | ???????????###/######??????????????????????? | | ???#####+##### #######?????????????????????? | | ???# +?????????????????????? | | ??## #?????????????????????? | | ??#" """" #?????????????????????? | +----------------------------------------------------+ Best States ------------- Heat Dissipation 55 Energy Generation 14 Energy Capacity 160 Matter Stores 300 Matter Capacity 300 Sight Range 16 Terrain Scan Density 10 Armor Coverage 150 Evasion (%) 50 Item Schematics ----------------- None Robot Schematics ------------------ None Fabricated ------------ Nothing Alien Tech Used ----------------- None Achievements -------------- None Challenges ------------ None Game ------ Seed ImpulseChainPlating Manual? 0 Play Time 01:17:38 Cumulative 15.8 hours Start 2020.09.09 @ 00:41:50 End 2020.09.09 @ 03:22:30 Sessions 3 Manual Loads 0 Difficulty Rogue Special Mode None Game No. 14 Rogue 14 Adventurer 0 Explorer 0 Win Type - Total 0 Types 0/0/0/0/0/0/0 Lore% 16 Gallery% 12 Achievement% 11 Wizard Run 0 Options --------- ASCII 0 Keyboard 0 Movement Numpad Keybinds 0 Fullscreen 1 Font 24/Terminus Map View 76x50 Tactical HUD 0 Map Filters NONE Filters NONE Steam 1 RUN: cf1802d1-ca63-4d95-a598-7f2e741b1b20